[Event "TUR-chT Superleague 2018"]
[Site "Ankara"]
[Date "2018.07.30"]
[Round "7"]
[White "Yilmaz, Goktan"]
[Black "Samani, Yamac"]
[Result "1-0"]
[ECO "B66"]
[WhiteElo "2233"]
[BlackElo "2227"]
[Annotator "NA"]
[PlyCount "89"]
[EventDate "2018.07.25"]
[EventType "team-tourn"]
[EventCountry "TUR"]
[SourceTitle "playchess.com"]
[Source "ChessBase"]
[SourceQuality "1"]
[TimeControl "40/5400+30:1800+30"]

1. e4 c5 2. Nf3 Nc6 3. d4 cxd4 4. Nxd4 Nf6 5. Nc3 d6 6. Bg5 e6 7. Qd2 a6 8. O-O-O h6 9. Be3 Be7 10. f3 Nxd4 11. Bxd4 b5 12. g4 Bb7 13. Kb1 d5 14. e5 Nd7 15. Qe3 Rc8 16. Bd3 Nc5 17. f4 b4 18. Ne2 {[%emt 0:39:00]} Nxd3 {[%emt 1:17:30]} 19. Qxd3 {[%emt 0:07:30]} Bc6 {[%emt 0:01:30]} 20. Qxa6 {[%emt 0:16:30]} Qd7 {[%emt 0:02:20]} 21. Qd3 {[%emt 0:06:30]} Bb5 {[%emt 0:00:00]} 22. Qe3 {[%emt 0:00:30]} Bxe2 {[%emt 0:04:49]} 23. Qxe2 {[%emt 0:00:30]} Ra8 {[%emt 0:00:33]} 24. Qd3 {[%emt 0:04:30]} O-O {[%emt 0:01:02]} 25. f5 {[%emt 0:02:30]} Qa4 {[%emt 0:10:53]} 26. Qb3 {[%emt 0:00:30]} Ra6 {[%emt 0:01:01]} 27. Qxa4 {[%emt 0:05:57]} Rxa4 {[%emt 0:00:04]} 28. b3 {[%emt 0:01:39]} Ra6 {[%emt 0:00:10]} 29. c3 {[%emt 0:01:38]} Rfa8 {[%emt 0:02:45]} 30. Rd2 {[%emt 0:02:49]} bxc3 {[%emt 0:00:40]} 31. Bxc3 {[%emt 0:00:30]} Rc8 {[%emt 0:00:30]} 32. Bd4 {[%emt 0:00:30]} Rac6 {[%emt 0:00:30]} 33. Kb2 {[%emt 0:00:30]} Bg5 {[%emt 0:00:30]} 34. Re2 {[%emt 0:04:56]} Kf8 {[%emt 0:02:09]} 35. h4 {[%emt 0:01:16]} Bc1+ {[%emt 0:00:16]} 36. Kb1 {[%emt 0:00:30]} Ba3 {[%emt 0:00:13]} 37. Bb2 {[%emt 0:00:00]} Bxb2 {[%emt 0:00:20]} 38. Kxb2 {[%emt 0:00:34]} Rc3 {[%emt 0:00:07]} 39. fxe6 {[%emt 0:01:44]} fxe6 {[%emt 0:00:30]} 40. Rf1+ {[%emt 0:00:30]} Kg8 {[%emt 0:00:08]} 41. Rf4 {[%emt 0:02:27]} Kh7 {[%emt 0:03:30]} 42. h5 {[%emt 0:01:30]} Kg8 {[%emt 0:00:30]} 43. a4 {[%emt 0:01:30]} Rg3 {[%emt 0:01:30]} 44. Rc2 {[%emt 0:01:30]} Rb8 {[%emt 0:00:00]} 45. b4 {[%emt 0:18:30]} 1-0

[Event "TUR-chT Superleague 2018"]
[Site "Ankara"]
[Date "2018.07.30"]
[Round "7"]
[White "Ozkan, Ervin"]
[Black "Ertan, Can"]
[Result "0-1"]
[ECO "A45"]
[WhiteElo "2171"]
[BlackElo "2379"]
[Annotator "NA"]
[PlyCount "88"]
[EventDate "2018.07.25"]
[EventType "team-tourn"]
[EventCountry "TUR"]
[SourceTitle "playchess.com"]
[Source "ChessBase"]
[SourceQuality "1"]
[TimeControl "40/5400+30:1800+30"]

1. d4 Nf6 2. Bf4 c5 3. e3 Nd5 4. Bg3 Qb6 5. Nc3 Nxc3 6. bxc3 d5 7. Bxb8 Rxb8 8. Rb1 Qa5 9. Bb5+ Kd8 10. dxc5 Qxc3+ 11. Kf1 e6 12. Ne2 Qxc5 13. g3 Bd6 14. Kg2 Ke7 15. Nf4 h5 16. h4 g6 17. Be2 Bd7 18. Bf3 Rhc8 19. Rb2 a5 20. Re1 {[%emt 1:13:00]} a4 {[%emt 0:48:30]} 21. Nd3 {[%emt 0:04:30]} Qc3 {[%emt 0:01:30]} 22. e4 {[%emt 0:01:30]} dxe4 {[%emt 0:02:30]} 23. Bxe4 {[%emt 0:02:30]} Bc6 {[%emt 0:00:30]} 24. Qf3 {[%emt 0:00:41]} a3 {[%emt 0:02:30]} 25. Rb6 {[%emt 0:02:45]} Qd4 {[%emt 0:04:30]} 26. Rbb1 {[%emt 0:04:30]} Bxe4 {[%emt 0:03:30]} 27. Rxe4 {[%emt 0:00:30]} Qd5 {[%emt 0:00:00]} 28. Rd1 {[%emt 0:01:35]} Qxa2 {[%emt 0:05:00]} 29. Rd4 {[%emt 0:01:56]} Rd8 {[%emt 0:01:30]} 30. Nb4 {[%emt 0:05:46]} Qb2 {[%emt 0:03:30]} 31. Qd3 {[%emt 0:01:06]} Bc7 {[%emt 0:00:30]} 32. Qc4 {[%emt 0:01:24]} Bb6 {[%emt 0:02:30]} 33. R4d3 {[%emt 0:03:23]} Rxd3 {[%emt 0:05:30]} 34. Rxd3 {[%emt 0:00:53]} Rd8 {[%emt 0:01:30]} 35. Rxd8 {[%emt 0:00:36]} Kxd8 {[%emt 0:00:30]} 36. Qf4 {[%emt 0:00:36]} Ke7 {[%emt 0:01:30]} 37. Qe4 {[%emt 0:00:45]} Kf8 {[%emt 0:00:30]} 38. Nd3 {[%emt 0:00:25]} Qxc2 {[%emt 0:02:30]} 39. Qb4+ {[%emt 0:00:03]} Kg7 {[%emt 0:00:30]} 40. Qxa3 {[%emt 0:00:00]} Bd4 {[%emt 0:00:30]} 41. Kh3 {[%emt 0:11:06]} e5 {[%emt 0:03:30]} 42. g4 {[%emt 0:03:46]} Qe2 {[%emt 0:01:30]} 43. gxh5 {[%emt 0:00:55]} Qf3+ {[%emt 0:00:30]} 44. Kh2 {[%emt 0:00:00]} Bxf2 {[%emt 0:00:30]} 0-1

[Event "TUR-chT Superleague 2018"]
[Site "Ankara"]
[Date "2018.07.30"]
[Round "7"]
[White "Oksuz, Akin"]
[Black "Karagollu, Ahmet"]
[Result "1/2-1/2"]
[ECO "E83"]
[WhiteElo "2167"]
[BlackElo "2127"]
[Annotator "NA"]
[PlyCount "127"]
[EventDate "2018.07.25"]
[EventType "team-tourn"]
[EventCountry "TUR"]
[SourceTitle "playchess.com"]
[Source "ChessBase"]
[SourceQuality "1"]
[TimeControl "40/5400+30:1800+30"]

1. d4 Nf6 2. c4 g6 3. Nc3 Bg7 4. e4 d6 5. f3 O-O 6. Be3 Nc6 7. Nge2 a6 8. Qd2 Na5 9. Nc1 Nd7 10. b4 Nc6 11. d5 Nxb4 12. Rb1 a5 13. Nb5 b6 14. Be2 e5 15. O-O Na6 16. Bd1 Nac5 17. Bc2 Nf6 18. Ne2 Ne8 19. Bg5 f6 20. Bh4 Qe7 21. g4 Rf7 22. Bf2 {[%emt 1:00:00]} Qf8 {[%emt 0:58:30]} 23. Be3 {[%emt 0:00:30]} f5 {[%emt 0:02:30]} 24. exf5 {[%emt 0:04:30]} gxf5 {[%emt 0:00:30]} 25. h3 {[%emt 0:00:00]} Bd7 {[%emt 0:04:30]} 26. Ng3 {[%emt 0:03:00]} f4 {[%emt 0:11:30]} 27. Bxc5 {[%emt 0:00:30]} Bxb5 {[%emt 0:06:30]} 28. cxb5 {[%emt 0:00:30]} dxc5 {[%emt 0:01:14]} 29. Ne4 {[%emt 0:03:30]} Bf6 {[%emt 0:05:35]} 30. Rfe1 {[%emt 0:28:05]} Bh4 {[%emt 0:01:39]} 31. Re2 {[%emt 0:00:01]} Nd6 {[%emt 0:00:44]} 32. Nxd6 {[%emt 0:01:28]} cxd6 {[%emt 0:00:12]} 33. Bf5 {[%emt 0:01:31]} Kh8 {[%emt 0:01:44]} 34. Qd3 {[%emt 0:00:59]} Qh6 {[%emt 0:00:49]} 35. Be6 {[%emt 0:01:10]} Rf6 {[%emt 0:00:29]} 36. Kg2 {[%emt 0:00:25]} Ra7 {[%emt 0:00:48]} 37. Rh1 {[%emt 0:00:53]} Rg7 {[%emt 0:01:19]} 38. Kf1 {[%emt 0:00:46]} Qg5 {[%emt 0:00:50]} 39. a4 {[%emt 0:00:32]} Rc7 {[%emt 0:01:25]} 40. Qc4 {[%emt 0:00:00]} Rh6 {[%emt 0:01:42]} 41. Qe4 {[%emt 0:04:10]} Rf6 {[%emt 0:03:30]} 42. Rc2 {[%emt 0:04:30]} Qh6 {[%emt 0:04:30]} 43. Bf5 {[%emt 0:00:30]} Qf8 {[%emt 0:01:30]} 44. Ke2 {[%emt 0:01:30]} Qf7 {[%emt 0:00:30]} 45. Kd3 {[%emt 0:00:30]} Qg8 {[%emt 0:02:30]} 46. Kc4 {[%emt 0:01:30]} Qg5 {[%emt 0:00:30]} 47. Re2 {[%emt 0:09:33]} Rg7 {[%emt 0:00:30]} 48. Be6 {[%emt 0:01:48]} Rgg6 {[%emt 0:01:30]} 49. Bf5 {[%emt 0:00:01]} Rh6 {[%emt 0:00:30]} 50. Qb1 {[%emt 0:01:32]} Bg3 {[%emt 0:01:30]} 51. Rd2 {[%emt 0:03:37]} Rh4 {[%emt 0:01:30]} 52. Qf1 {[%emt 0:00:44]} h5 {[%emt 0:05:30]} 53. Re2 {[%emt 0:01:35]} Rh6 {[%emt 0:00:30]} 54. Qb1 {[%emt 0:00:42]} hxg4 {[%emt 0:00:33]} 55. Bxg4 {[%emt 0:00:16]} Kg7 {[%emt 0:01:07]} 56. Qf5 {[%emt 0:02:29]} Qxf5 {[%emt 0:01:20]} 57. Bxf5 {[%emt 0:00:30]} Kf6 {[%emt 0:00:00]} 58. Bg4 {[%emt 0:01:13]} Kg5 {[%emt 0:02:09]} 59. Rf1 {[%emt 0:00:16]} Rh7 {[%emt 0:03:08]} 60. Kd3 {[%emt 0:00:29]} Rc7 {[%emt 0:01:57]} 61. Rc1 {[%emt 0:00:02]} Rhh7 {[%emt 0:00:42]} 62. Ke4 {[%emt 0:00:21]} Rhf7 {[%emt 0:00:53]} 63. Be6 {[%emt 0:01:01]} Rf6 {[%emt 0:00:16]} 64. Bg4 {[%emt 0:00:00]} 1/2-1/2

[Event "TUR-chT Superleague 2018"]
[Site "Ankara"]
[Date "2018.07.30"]
[Round "7"]
[White "Ererdem, Gani Eren"]
[Black "Korkmaz, Necmettin"]
[Result "1-0"]
[ECO "D46"]
[WhiteElo "2157"]
[BlackElo "2056"]
[Annotator "NA"]
[PlyCount "73"]
[EventDate "2018.07.25"]
[EventType "team-tourn"]
[EventCountry "TUR"]
[SourceTitle "playchess.com"]
[Source "ChessBase"]
[SourceQuality "1"]
[TimeControl "40/5400+30:1800+30"]

1. d4 d5 2. c4 c6 3. Nf3 Nf6 4. Nc3 e6 5. e3 Nbd7 6. Bd3 Bd6 7. O-O O-O 8. e4 dxc4 9. Bxc4 e5 10. Be3 Qe7 11. Bb3 exd4 12. Bxd4 Ne5 13. Nxe5 Bxe5 14. Bxe5 Qxe5 15. f4 Qc5+ 16. Kh1 Bg4 17. Qe1 Rfe8 18. Qg3 Be6 19. e5 Nd7 20. Rad1 Rad8 21. Ne4 {[%emt 0:39:30]} Qe7 {[%emt 1:20:00]} 22. Nd6 {[%emt 0:03:30]} Bxb3 {[%emt 0:02:46]} 23. Nxe8 {[%emt 0:05:30]} Rxe8 {[%emt 0:00:17]} 24. Qxb3 {[%emt 0:01:30]} Nc5 {[%emt 0:00:21]} 25. Qa3 {[%emt 0:00:30]} b6 {[%emt 0:00:59]} 26. Qf3 {[%emt 0:00:30]} f6 {[%emt 0:02:13]} 27. Qxc6 {[%emt 0:01:30]} fxe5 {[%emt 0:00:36]} 28. b4 {[%emt 0:00:30]} Ne6 {[%emt 0:03:32]} 29. fxe5 {[%emt 0:00:30]} Nf8 {[%emt 0:01:34]} 30. Qd5+ {[%emt 0:08:30]} Ne6 {[%emt 0:00:10]} 31. h3 {[%emt 0:00:00]} g6 {[%emt 0:00:42]} 32. a3 {[%emt 0:02:00]} Kg7 {[%emt 0:01:12]} 33. Qc6 {[%emt 0:10:30]} Nd8 {[%emt 0:01:54]} 34. Qf6+ {[%emt 0:01:30]} Qxf6 {[%emt 0:01:06]} 35. exf6+ {[%emt 0:00:30]} Kf8 {[%emt 0:01:13]} 36. Rd7 {[%emt 0:00:30]} Ne6 {[%emt 0:01:57]} 37. Rxh7 {[%emt 0:00:30]} 1-0

[Event "TUR-chT Superleague 2018"]
[Site "Ankara"]
[Date "2018.07.30"]
[Round "7"]
[White "Tarlabasi, Emirhan"]
[Black "Bozbey, Ali"]
[Result "1/2-1/2"]
[ECO "A21"]
[WhiteElo "2117"]
[BlackElo "2126"]
[Annotator "NA"]
[PlyCount "209"]
[EventDate "2018.07.25"]
[EventType "team-tourn"]
[EventCountry "TUR"]
[SourceTitle "playchess.com"]
[Source "ChessBase"]
[SourceQuality "1"]
[TimeControl "40/5400+30:1800+30"]

1. d4 d6 2. c4 e5 3. Nc3 exd4 4. Qxd4 Nc6 5. Qd2 Nf6 6. b3 a5 7. g3 a4 8. bxa4 Be6 9. Bg2 Bxc4 10. Nh3 d5 11. O-O Bb4 12. Qb2 O-O 13. Bd2 {[%emt 1:04:30]} Qe7 {[%emt 0:59:00]} 14. a3 {[%emt 0:06:30]} Ba5 {[%emt 0:00:30]} 15. Rfe1 {[%emt 0:02:30]} Nd4 {[%emt 0:03:30]} 16. e4 {[%emt 0:04:30]} dxe4 {[%emt 0:10:30]} 17. Nxe4 {[%emt 0:00:51]} Bxd2 {[%emt 0:06:27]} 18. Nxd2 {[%emt 0:06:14]} Ne2+ {[%emt 0:00:41]} 19. Kh1 {[%emt 0:00:30]} Ba6 {[%emt 0:00:00]} 20. Nf3 {[%emt 0:05:29]} Rfe8 {[%emt 0:03:53]} 21. Nfg1 {[%emt 0:03:38]} Qe5 {[%emt 0:01:12]} 22. Qxe5 {[%emt 0:02:25]} Rxe5 {[%emt 0:00:04]} 23. Nxe2 {[%emt 0:03:48]} Rxe2 {[%emt 0:00:50]} 24. Rxe2 {[%emt 0:00:30]} Bxe2 {[%emt 0:00:30]} 25. Bxb7 {[%emt 0:00:00]} Rxa4 {[%emt 0:00:00]} 26. Nf4 {[%emt 0:00:30]} Bb5 {[%emt 0:00:19]} 27. Kg2 {[%emt 0:01:01]} Kf8 {[%emt 0:00:51]} 28. Rc1 {[%emt 0:00:29]} Ra7 {[%emt 0:00:15]} 29. Bf3 {[%emt 0:00:31]} Rxa3 {[%emt 0:00:45]} 30. Rxc7 {[%emt 0:00:46]} Bf1+ {[%emt 0:00:30]} 31. Kxf1 {[%emt 0:00:00]} Rxf3 {[%emt 0:00:00]} 32. Kg2 {[%emt 0:00:57]} Ra3 {[%emt 0:00:00]} 33. h3 {[%emt 0:00:13]} g5 {[%emt 0:00:33]} 34. Ne2 {[%emt 0:00:09]} Rd3 {[%emt 0:00:30]} 35. Ng1 {[%emt 0:00:55]} Rd5 {[%emt 0:00:32]} 36. Nf3 {[%emt 0:00:13]} h6 {[%emt 0:01:17]} 37. Nh2 {[%emt 0:01:01]} Kg7 {[%emt 0:00:27]} 38. Nf1 {[%emt 0:00:14]} Rd7 {[%emt 0:00:30]} 39. Rc4 {[%emt 0:00:18]} Nd5 {[%emt 0:01:44]} 40. Nh2 {[%emt 0:00:00]} f6 {[%emt 0:03:10]} 41. Rc6 {[%emt 0:02:48]} Ne7 {[%emt 0:00:30]} 42. Ra6 {[%emt 0:01:30]} h5 {[%emt 0:02:30]} 43. Nf3 {[%emt 0:01:30]} Nf5 {[%emt 0:02:30]} 44. Ra4 {[%emt 0:01:30]} Kg6 {[%emt 0:00:30]} 45. Re4 {[%emt 0:00:30]} Re7 {[%emt 0:01:30]} 46. Ra4 {[%emt 0:03:30]} Re2 {[%emt 0:00:30]} 47. Kf1 {[%emt 0:00:30]} Re6 {[%emt 0:00:30]} 48. h4 {[%emt 0:01:30]} gxh4 {[%emt 0:00:30]} 49. Nxh4+ {[%emt 0:00:30]} Nxh4 {[%emt 0:00:30]} 50. Rxh4 {[%emt 0:00:00]} Rb6 {[%emt 0:00:30]} 51. Rf4 {[%emt 0:01:00]} Kg5 {[%emt 0:00:30]} 52. Kg2 {[%emt 0:00:30]} Rb2 {[%emt 0:00:00]} 53. Ra4 {[%emt 0:00:00]} Rc2 {[%emt 0:00:00]} 54. Ra5+ {[%emt 0:00:00]} Kg4 {[%emt 0:01:30]} 55. Ra6 {[%emt 0:00:30]} Kg5 {[%emt 0:00:30]} 56. Ra5+ {[%emt 0:00:30]} Kg4 {[%emt 0:00:00]} 57. Ra8 {[%emt 0:00:00]} Rb2 {[%emt 0:00:00]} 58. Rg8+ {[%emt 0:01:00]} Kf5 {[%emt 0:00:30]} 59. Re8 {[%emt 0:00:00]} Kg4 {[%emt 0:00:00]} 60. Re4+ {[%emt 0:00:00]} Kf5 {[%emt 0:00:00]} 61. Re3 {[%emt 0:02:30]} Kg4 {[%emt 0:01:30]} 62. Re1 {[%emt 0:01:30]} Ra2 {[%emt 0:00:30]} 63. Rh1 {[%emt 0:00:30]} Rb2 {[%emt 0:00:30]} 64. Rh4+ {[%emt 0:00:30]} Kg5 {[%emt 0:00:00]} 65. Re4 {[%emt 0:00:30]} Kf5 {[%emt 0:00:00]} 66. Re3 {[%emt 0:05:29]} Kg4 {[%emt 0:00:00]} 67. Rf3 {[%emt 0:00:44]} Kg5 {[%emt 0:01:00]} 68. Rf4 {[%emt 0:01:18]} Ra2 {[%emt 0:00:00]} 69. Rh4 {[%emt 0:00:16]} Rc2 {[%emt 0:00:00]} 70. Kg1 {[%emt 0:00:30]} Rc1+ {[%emt 0:00:00]} 71. Kg2 {[%emt 0:00:00]} Rc2 {[%emt 0:00:00]} 72. Kf1 {[%emt 0:00:00]} Rc1+ {[%emt 0:00:30]} 73. Ke2 {[%emt 0:00:00]} Rc2+ {[%emt 0:00:00]} 74. Ke1 {[%emt 0:02:17]} Ra2 {[%emt 0:00:00]} 75. Rh2 {[%emt 0:01:24]} Ra1+ {[%emt 0:01:30]} 76. Ke2 {[%emt 0:00:30]} Ra2+ {[%emt 0:00:00]} 77. Kf1 {[%emt 0:00:08]} Ra1+ {[%emt 0:00:00]} 78. Kg2 {[%emt 0:00:30]} Ra2 {[%emt 0:00:00]} 79. Kh3 {[%emt 0:00:00]} Ra1 {[%emt 0:00:00]} 80. f3 {[%emt 0:00:55]} Rf1 {[%emt 0:01:30]} 81. Kg2 {[%emt 0:00:32]} Ra1 {[%emt 0:00:00]} 82. f4+ {[%emt 0:00:49]} Kg6 {[%emt 0:00:00]} 83. Kh3 {[%emt 0:00:00]} Rg1 {[%emt 0:00:30]} 84. Ra2 {[%emt 0:00:24]} Rh1+ {[%emt 0:00:30]} 85. Kg2 {[%emt 0:00:30]} Rb1 {[%emt 0:00:00]} 86. Ra5 {[%emt 0:00:47]} Rb2+ {[%emt 0:01:00]} 87. Kh3 {[%emt 0:00:30]} Rb1 {[%emt 0:00:00]} 88. Ra3 {[%emt 0:04:57]} Rh1+ {[%emt 0:00:00]} 89. Kg2 {[%emt 0:00:30]} Rb1 {[%emt 0:00:30]} 90. Kf3 {[%emt 0:00:30]} Rf1+ {[%emt 0:00:00]} 91. Kg2 {[%emt 0:00:00]} Rb1 {[%emt 0:00:00]} 92. Ra2 {[%emt 0:00:02]} Rb3 {[%emt 0:00:00]} 93. Kh3 {[%emt 0:00:12]} Rb1 {[%emt 0:00:00]} 94. Ra5 {[%emt 0:01:18]} Rh1+ {[%emt 0:00:30]} 95. Kg2 {[%emt 0:00:30]} Rb1 {[%emt 0:00:00]} 96. Rc5 {[%emt 0:00:10]} Rb2+ {[%emt 0:00:00]} 97. Kh3 {[%emt 0:00:13]} Rb1 {[%emt 0:00:30]} 98. Ra5 {[%emt 0:00:30]} Rh1+ {[%emt 0:00:30]} 99. Kg2 {[%emt 0:00:30]} Rb1 {[%emt 0:00:00]} 100. Rc5 {[%emt 0:00:00]} Rb2+ {[%emt 0:00:00]} 101. Kf3 {[%emt 0:00:13]} Rb3+ {[%emt 0:00:00]} 102. Kf2 {[%emt 0:00:00]} Rb2+ {[%emt 0:00:00]} 103. Kf3 {[%emt 0:00:17]} Rb3+ {[%emt 0:00:30]} 104. Kf2 {[%emt 0:00:00]} Rb2+ {[%emt 0:00:00]} 105. Kf3 {[%emt 0:00:14]} 1/2-1/2

[Event "TUR-chT Superleague 2018"]
[Site "Ankara"]
[Date "2018.07.30"]
[Round "7"]
[White "Cansun, Can Alp"]
[Black "Gulbeyaz, Emir"]
[Result "1/2-1/2"]
[ECO "B06"]
[WhiteElo "1894"]
[BlackElo "2074"]
[Annotator "NA"]
[PlyCount "128"]
[EventDate "2018.07.25"]
[EventType "team-tourn"]
[EventCountry "TUR"]
[SourceTitle "playchess.com"]
[Source "ChessBase"]
[SourceQuality "1"]
[TimeControl "40/5400+30:1800+30"]

1. e4 g6 2. d4 Bg7 3. Nc3 a6 4. f4 d6 5. Nf3 b5 6. Bd3 Nd7 7. e5 e6 8. O-O Ne7 9. a4 b4 10. Ne4 d5 11. Neg5 h6 12. Nh3 c5 13. c3 Nc6 14. g4 cxd4 15. cxd4 Qb6 16. Be3 h5 17. gxh5 Rxh5 18. Nfg5 Nf8 19. Qg4 Rh8 20. Qg2 Ne7 21. a5 Qb7 22. Rfc1 Bd7 {[%emt 0:46:30]} 23. Qe2 {[%emt 1:09:30]} Nh7 {[%emt 0:02:30]} 24. Nf2 {[%emt 0:01:30]} Nf5 {[%emt 0:02:30]} 25. Bxf5 {[%emt 0:04:30]} gxf5 {[%emt 0:00:30]} 26. Nf3 {[%emt 0:04:30]} Nf8 {[%emt 0:10:30]} 27. Nd3 {[%emt 0:01:30]} Bb5 {[%emt 0:01:30]} 28. Qd2 {[%emt 0:00:30]} Ng6 {[%emt 0:04:30]} 29. Nxb4 {[%emt 0:08:55]} Bh6 {[%emt 0:00:30]} 30. Ra3 {[%emt 0:03:24]} Rg8 {[%emt 0:00:00]} 31. Kh1 {[%emt 0:01:23]} Rb8 {[%emt 0:00:00]} 32. Rac3 {[%emt 0:00:42]} Bc4 {[%emt 0:00:30]} 33. Nd3 {[%emt 0:00:00]} Qb5 {[%emt 0:03:30]} 34. b3 {[%emt 0:00:38]} Bxd3 {[%emt 0:00:30]} 35. Qxd3 {[%emt 0:04:12]} Qxd3 {[%emt 0:01:30]} 36. Rxd3 {[%emt 0:00:01]} Bxf4 {[%emt 0:06:30]} 37. Rdc3 {[%emt 0:00:54]} Kf8 {[%emt 0:02:30]} 38. Bxf4 {[%emt 0:04:22]} Nxf4 {[%emt 0:00:30]} 39. Rc8+ {[%emt 0:00:20]} Kg7 {[%emt 0:00:00]} 40. Rg1+ {[%emt 0:00:20]} Ng6 {[%emt 0:00:00]} 41. Rc7 {[%emt 0:01:19]} Rgc8 {[%emt 0:02:30]} 42. Ra7 {[%emt 0:03:30]} Ra8 {[%emt 0:00:30]} 43. Rb7 {[%emt 0:02:30]} Rab8 {[%emt 0:00:30]} 44. Ra7 {[%emt 0:01:30]} Ra8 {[%emt 0:00:30]} 45. Rb7 {[%emt 0:11:14]} Rab8 {[%emt 0:00:30]} 46. Ra7 {[%emt 0:01:14]} Ra8 {[%emt 0:00:00]} 47. Rd7 {[%emt 0:05:45]} Rd8 {[%emt 0:00:00]} 48. Rc7 {[%emt 0:00:04]} Rdc8 {[%emt 0:00:30]} 49. Rgc1 {[%emt 0:01:12]} Rxc7 {[%emt 0:00:30]} 50. Rxc7 {[%emt 0:00:00]} Rb8 {[%emt 0:01:30]} 51. Ng5 {[%emt 0:00:00]} Rxb3 {[%emt 0:00:00]} 52. Nxe6+ {[%emt 0:00:03]} Kg8 {[%emt 0:02:00]} 53. Rc8+ {[%emt 0:00:30]} Kh7 {[%emt 0:00:00]} 54. Ng5+ {[%emt 0:00:01]} Kg7 {[%emt 0:00:00]} 55. Rc7 {[%emt 0:00:30]} Nh4 {[%emt 0:00:30]} 56. Kg1 {[%emt 0:01:06]} Kg6 {[%emt 0:01:30]} 57. Nxf7 {[%emt 0:00:05]} f4 {[%emt 0:00:30]} 58. e6 {[%emt 0:02:21]} Rb1+ {[%emt 0:01:30]} 59. Kf2 {[%emt 0:00:59]} Rb2+ {[%emt 0:00:30]} 60. Kf1 {[%emt 0:02:35]} Rb1+ {[%emt 0:05:30]} 61. Kf2 {[%emt 0:00:13]} Rb2+ {[%emt 0:00:00]} 62. Kf1 {[%emt 0:00:59]} Rb1+ {[%emt 0:00:00]} 63. Kf2 {[%emt 0:01:20]} Rb2+ {[%emt 0:00:30]} 64. Kf1 {[%emt 0:00:08]} Kf5 {[%emt 0:00:30]} 1/2-1/2

[Event "TUR-chT Superleague 2018"]
[Site "Ankara"]
[Date "2018.07.30"]
[Round "7"]
[White "Yildirim, Ibrahim Halil"]
[Black "Can, Isik"]
[Result "0-1"]
[ECO "C24"]
[WhiteElo "1887"]
[BlackElo "2385"]
[Annotator "NA"]
[PlyCount "102"]
[EventDate "2018.07.25"]
[EventType "team-tourn"]
[EventCountry "TUR"]
[SourceTitle "playchess.com"]
[Source "ChessBase"]
[SourceQuality "1"]
[TimeControl "40/5400+30:1800+30"]

1. e4 e5 2. Bc4 Nf6 3. d3 c6 4. Nf3 d5 5. Bb3 a5 6. a3 a4 7. Ba2 Bd6 8. Nc3 dxe4 9. Ng5 O-O 10. Ncxe4 h6 11. Nxf6+ Qxf6 12. Ne4 Qg6 13. Nxd6 Qxd6 14. O-O Be6 15. Bxe6 Qxe6 16. f4 exf4 17. Bxf4 Nd7 18. Qd2 {[%emt 1:07:00]} Rfe8 {[%emt 0:48:30]} 19. Rf3 {[%emt 0:22:02]} Nf8 {[%emt 0:07:30]} 20. Raf1 {[%emt 0:01:59]} Ng6 {[%emt 0:05:30]} 21. Qf2 {[%emt 0:02:28]} Re7 {[%emt 0:02:30]} 22. Re3 {[%emt 0:02:11]} Qd7 {[%emt 0:01:30]} 23. Rxe7 {[%emt 0:00:35]} Qxe7 {[%emt 0:00:00]} 24. Bd2 {[%emt 0:00:34]} f6 {[%emt 0:07:00]} 25. Re1 {[%emt 0:00:32]} Qd7 {[%emt 0:01:30]} 26. Bc3 {[%emt 0:01:29]} Re8 {[%emt 0:08:30]} 27. Rxe8+ {[%emt 0:00:30]} Qxe8 {[%emt 0:00:00]} 28. Qe1 {[%emt 0:01:49]} Qxe1+ {[%emt 0:07:02]} 29. Bxe1 {[%emt 0:00:30]} Kf7 {[%emt 0:00:30]} 30. Kf2 {[%emt 0:00:06]} Ne5 {[%emt 0:00:24]} 31. h3 {[%emt 0:00:37]} g5 {[%emt 0:02:17]} 32. Bc3 {[%emt 0:02:59]} Ng6 {[%emt 0:00:26]} 33. g3 {[%emt 0:00:31]} h5 {[%emt 0:01:57]} 34. Bd2 {[%emt 0:00:29]} Ke6 {[%emt 0:01:43]} 35. Kf3 {[%emt 0:00:33]} Ne5+ {[%emt 0:00:44]} 36. Kf2 {[%emt 0:00:30]} b5 {[%emt 0:01:45]} 37. Bc3 {[%emt 0:00:30]} Ng6 {[%emt 0:01:02]} 38. Bd2 {[%emt 0:00:29]} c5 {[%emt 0:00:40]} 39. Ke2 {[%emt 0:00:31]} Ne5 {[%emt 0:01:12]} 40. Bc3 {[%emt 0:00:00]} Nc6 {[%emt 0:01:18]} 41. Kf2 {[%emt 0:21:04]} Kf5 {[%emt 0:19:22]} 42. b3 {[%emt 0:06:31]} Nd4 {[%emt 0:09:39]} 43. b4 {[%emt 0:03:57]} Nxc2 {[%emt 0:01:00]} 44. bxc5 {[%emt 0:00:26]} Nxa3 {[%emt 0:01:14]} 45. c6 {[%emt 0:01:16]} Ke6 {[%emt 0:00:05]} 46. Bxf6 {[%emt 0:00:16]} b4 {[%emt 0:01:21]} 47. c7 {[%emt 0:00:55]} Kd7 {[%emt 0:00:02]} 48. Ke2 {[%emt 0:00:00]} Nb5 {[%emt 0:06:06]} 49. Kd2 {[%emt 0:00:28]} b3 {[%emt 0:00:00]} 50. Kc1 {[%emt 0:00:39]} a3 {[%emt 0:00:41]} 51. Kb1 {[%emt 0:01:01]} g4 {[%emt 0:00:30]} 0-1

[Event "TUR-chT Superleague 2018"]
[Site "Ankara"]
[Date "2018.07.30"]
[Round "7"]
[White "Can, Isil"]
[Black "Ayan, Bengu Sena"]
[Result "1/2-1/2"]
[ECO "C01"]
[WhiteElo "1862"]
[BlackElo "1787"]
[Annotator "NA"]
[PlyCount "65"]
[EventDate "2018.07.25"]
[EventType "team-tourn"]
[EventCountry "TUR"]
[SourceTitle "playchess.com"]
[Source "ChessBase"]
[SourceQuality "1"]
[TimeControl "40/5400+30:1800+30"]

1. e4 e6 2. d4 d5 3. exd5 exd5 4. Bd3 c5 5. dxc5 Bxc5 6. Nf3 Nf6 7. O-O O-O 8. h3 Qd6 9. Nc3 a6 10. Bg5 Bxh3 11. gxh3 Qg3+ 12. Kh1 Qxh3+ 13. Nh2 Bd6 14. f4 Nh5 15. Qf3 Ng3+ 16. Kg1 Bc5+ 17. Rf2 Bxf2+ 18. Qxf2 f6 19. Qg2 Qxg2+ 20. Kxg2 fxg5 21. Kxg3 gxf4+ 22. Kf2 d4 23. Ne4 Nc6 24. Nf3 {[%emt 0:49:00]} g6 {[%emt 1:11:30]} 25. Neg5 {[%emt 0:06:30]} Rf6 {[%emt 0:14:10]} 26. Rh1 {[%emt 0:09:30]} h5 {[%emt 0:00:37]} 27. Ne4 {[%emt 0:04:30]} Rff8 {[%emt 0:01:52]} 28. Rg1 {[%emt 0:00:00]} Kg7 {[%emt 0:02:03]} 29. Nc5 {[%emt 0:07:00]} Rf6 {[%emt 0:01:55]} 30. Nd7 {[%emt 0:00:30]} Re6 {[%emt 0:00:47]} 31. Nc5 {[%emt 0:01:30]} Rf6 {[%emt 0:00:28]} 32. Nd7 {[%emt 0:07:30]} Re6 {[%emt 0:02:25]} 33. Nc5 {[%emt 0:08:54]} 1/2-1/2